fUSD/lending_fUSD_20250524
["ID","MTS","AMOUNT","RATE_DAILY","PERIOD"]
[362167618,1748050030086,-321.83471921,0.000199,3]
[362167619,1748050031083,-362.46830411,0.000199,3]
[362167620,1748050046102,-714.89738879,0.000199,3]
[362167621,1748050046122,-14.91049071,0.00019999,2]
[362167622,1748050046148,-43.31723259,0.00019999,2]
[362167623,1748050046168,-150.0,0.00019999,2]
[362167624,1748050046188,-500.0,0.00019999,2]
[362167625,1748050046210,-500.0,0.00019999,2]
[362167626,1748050046230,-345.87312555,0.00019999,2]
[362167627,1748050061951,-167.64238623,0.00019899,2]
[362167628,1748050061975,-154.12687445,0.00019999,2]
[362167629,1748050061999,-500.0,0.00019999,2]
[362167630,1748050062023,-500.0,0.00019999,2]
[362167631,1748050062046,-645.55534884,0.00019999,2]
[362167632,1748050062069,-408.18738125,0.00019999,2]
[362167633,1748050062092,-200.0,0.0002,2]
[362167634,1748050062117,-10109.71340923,0.0002,2]
[362167635,1748050103960,159.09,0.00013699,2]
[362167637,1748050150114,-300.0,0.00019999,2]
[362167638,1748050150137,-6434.30791191,0.0002,2]
[362167639,1748050164095,-19355.98183241,0.0002,2]
[362167640,1748050169092,-12362.22105221,0.0002,2]
[362167641,1748050173126,-530.84425868,0.0002,2]
[362167649,1748050231619,-1200.0,0.00019999,2]
[362167650,1748050231630,-195.78313172,0.00019999,2]
[362167651,1748050231641,-4575.78449738,0.0002,2]
[362167652,1748050231652,-2458.07523741,0.0002,2]
[362167653,1748050231663,-8772.02652804,0.0002,2]
[362167654,1748050231675,-1676.6334,0.0002,2]
[362167655,1748050231686,-42957.16024337,0.0002,2]
[362167656,1748050231695,-66099.75093806,0.0002,2]
[362167657,1748050231707,-3728.76902459,0.0002,2]
[362167658,1748050231717,-1235.0,0.00021881,2]
[362167659,1748050231727,-258.37395612,0.000219,6]
[362167660,1748050231736,-200.0,0.00021999,2]
[362167661,1748050231747,-250.0,0.00021999,2]
[362167662,1748050231758,-200.0,0.00021999,2]
[362167663,1748050231768,-200.0,0.00022,2]
[362167664,1748050231778,-258.37395602,0.00022624,7]
[362167665,1748050231788,-258.37395602,0.00023348,9]
[362167666,1748050231798,-250.0,0.0002354,2]
[362167667,1748050231808,-5000.00238437,0.00024,5]
[362167669,1748050231817,-258.37395602,0.00024072,10]
[362167671,1748050231826,-200.0,0.00024074,2]
[362167673,1748050231836,-258.37395602,0.00024797,11]
[362167675,1748050231845,-258.37395602,0.00025521,13]
[362167677,1748050231855,-159.09,0.00026027,2]
[362167679,1748050231864,-1262.22,0.00026171,2]
[362167681,1748050231873,-258.37395602,0.00026245,14]
[362167683,1748050231883,-258.37395602,0.00026969,16]
[362167685,1748050231893,-600.0,0.00027397,10]
[362167687,1748050231902,-500.0,0.000274,10]
[362167689,1748050231911,-1154.69926246,0.00027572,2]
[362167691,1748050231920,-280.26716551,0.000276,2]
[362167693,1748050231930,-150.0,0.000276,2]
[362167695,1748050231939,-157.623,0.00027617,2]
[362167697,1748050231951,-4054.0,0.00027617,2]
[362167699,1748050231960,-258.37395602,0.00027693,17]
[362167701,1748050231969,-152.87,0.00027818,2]
[362167703,1748050231978,-1446.99,0.00027835,2]
[362167705,1748050231987,-200.01,0.00027945,2]
[362167707,1748050231997,-1077.0,0.00027968,5]
[362167709,1748050232006,-167.0,0.00028,14]
[362167711,1748050232015,-2636.05984127,0.00028057,2]
[362167732,1748050232171,-285.661587,0.00028057,2]
[362167734,1748050232183,-4008.60135854,0.00028057,2]
[362167736,1748050232194,-967.26030951,0.00028057,2]
[362167738,1748050232203,-1000.0,0.00028089,2]
[362167740,1748050232214,-204.0,0.00028157,2]
[362167742,1748050232224,-258.37395602,0.00028417,19]
[362167744,1748050232233,-1262.22,0.00028435,2]
[362167746,1748050232242,-157.82,0.00028458,2]
[362167748,1748050232250,-157.82,0.00028466,2]
[362167749,1748050232259,-157.82,0.00028475,2]
[362167751,1748050232268,-157.82,0.00028483,2]
[362167753,1748050232277,-157.82,0.00028492,2]
[362167755,1748050232286,-157.82,0.000285,2]
[362167757,1748050232296,-157.82,0.00028508,2]
[362167759,1748050232304,-157.82,0.00028517,2]
[362167761,1748050232313,-157.82,0.00028525,2]
[362167763,1748050232323,-157.82,0.00028533,2]
[362167765,1748050232332,-157.82,0.00028542,2]
[362167767,1748050232341,-157.82,0.0002855,2]
[362167769,1748050232350,-157.82,0.00028559,2]
[362167771,1748050232359,-157.82,0.00028567,2]
[362167773,1748050232368,-157.82,0.00028575,2]
[362167774,1748050232377,-23900.0,0.00028577,2]
[362167776,1748050232387,-157.82,0.00028584,2]
[362167779,1748050232400,-157.82,0.00028592,2]
[362167781,1748050232410,-157.82,0.00028601,2]
[362167783,1748050232419,-175.83,0.00028628,2]
[362167785,1748050232429,-201.0,0.00028812,2]
[362167787,1748050232438,-7897.58309625,0.00028817,2]
[362167789,1748050232448,-150.0,0.00028849,7]
[362167791,1748050232458,-156.49,0.00028885,2]
[362167793,1748050232468,-200.0,0.00028922,2]
[362167795,1748050232477,-319.55,0.00028974,120]
[362167797,1748050232486,-250.0,0.00028993,2]
[362167799,1748050232496,-154.27,0.00029,2]
[362167801,1748050232507,-500.0,0.00029068,2]
[362167803,1748050232516,-916.46,0.00029078,2]
[362167805,1748050232526,-258.37395602,0.00029141,20]
[362167807,1748050232536,-462.29,0.00029153,2]
[362167809,1748050232547,-300.0,0.00029178,2]
[362167811,1748050232556,-162.87,0.00029178,2]
[362167813,1748050232566,-967.78496425,0.00029192,4]
[362167816,1748050232579,-152.60373375,0.00029192,4]
[362167817,1748050232588,-152.87,0.00029209,2]
[362167820,1748050232599,-166.27,0.00029347,2]
[362167822,1748050232608,-1077.0,0.0002944,5]
[362167824,1748050232618,-7897.58309625,0.00029578,2]
[362167826,1748050232627,-2008.9755,0.0002958,2]
[362167828,1748050232637,-226.988,0.0002958,2]
[362167830,1748050232646,-150.0,0.00029589,2]
[362167832,1748050232656,-150.0,0.00029589,2]
[362167833,1748050232665,-150.0,0.00029589,2]
[362167835,1748050232675,-150.0,0.00029589,2]
[362167837,1748050232685,-150.0,0.00029589,2]
[362167839,1748050232698,-300.0,0.00029589,2]
[362167841,1748050232708,-751.94,0.00029589,2]
[362167843,1748050232719,-4859.81588085,0.0002967,2]
[362167846,1748050232729,-191.03607196,0.00029679,2]
[362167847,1748050232739,-198.64637787,0.00029679,2]
[362167850,1748050232749,-186.6278098,0.00029679,2]
[362167852,1748050232758,-500.0,0.00029679,2]
[362167854,1748050232770,-185.99616019,0.00029679,2]
[362167856,1748050232780,-8210.19481488,0.0002968,2]
[362167858,1748050232793,-952.03132519,0.0002968,2]
[362167863,1748050232826,-417.53020642,0.0002968,2]
[362168071,1748050237465,-230.0,0.00029679,2]
[362168072,1748050237475,-41822.94905041,0.0002968,2]
[362168073,1748050237484,-1245.43037,0.0002968,2]
[362168074,1748050237494,-1245.43037,0.0002971,2]
[362168075,1748050237503,-193.89186343,0.00029755,2]
[362168076,1748050237513,-179.89312509,0.00029778,2]
[362168077,1748050237522,-1000.0,0.00029779,2]
[362168078,1748050237532,-2500.0,0.00029779,2]
[362168079,1748050237542,-270.9274,0.00029779,2]
[362168080,1748050237552,-3942.864,0.00029779,2]
[362168081,1748050237561,-1000.0,0.00029779,2]
[362168082,1748050237571,-2370.27343889,0.00029779,2]
[362168083,1748050237581,-1245.43037,0.0002979,2]
[362168084,1748050237590,-325.58,0.000298,2]
[362168085,1748050237599,-1000.0,0.000298,2]
[362168086,1748050237609,-200.0,0.00029807,2]
[362168087,1748050237619,-258.37395602,0.00029866,21]
[362168088,1748050237628,-48622.16856637,0.00029869,3]
[362168089,1748050237694,-18293.95639694,0.00029869,3]
[362168090,1748050239648,-24201.55169629,0.00029869,3]
[362168091,1748050239658,-6692.18374918,0.00029878,10]
[362168092,1748050239667,-2657.182,0.00029878,24]
[362168093,1748050239677,-174.002,0.00029878,24]
[362168094,1748050239691,-35943.8255,0.00029879,2]
[362168095,1748050239701,-129950.3163,0.00029879,2]
[362168096,1748050239710,-500.0,0.00029879,2]
[362168097,1748050239719,-500.0,0.00029879,2]
[362168098,1748050239730,-500.0,0.00029879,2]
[362168099,1748050239740,-150.0,0.00029879,2]
[362168100,1748050239750,-150.0,0.00029879,2]
[362168101,1748050239762,-500.0,0.00029879,2]
[362168102,1748050239773,-1789.0,0.000299,2]
[362168103,1748050239784,-358.95778689,0.000299,2]
[362168104,1748050239794,-358.95778688,0.000299,2]
[362168105,1748050239803,-500.0,0.00029906,2]
[362168106,1748050239813,-500.0,0.00029906,2]
[362168107,1748050239822,-500.0,0.00029906,2]
[362168108,1748050239831,-500.0,0.00029934,2]
[362168109,1748050239842,-500.0,0.00029934,2]
[362168110,1748050239851,-500.0,0.00029934,2]
[362168111,1748050239861,-153.058475,0.00029934,7]
[362168112,1748050239870,-151.0,0.00029934,7]
[362168113,1748050239879,-500.0,0.00029961,2]
[362168114,1748050239889,-500.0,0.00029961,2]
[362168115,1748050239898,-500.0,0.00029961,2]
[362168116,1748050239908,-1000.0,0.00029968,2]
[362168117,1748050239917,-150.0,0.00029978,2]
[362168118,1748050239926,-299.54358369,0.00029978,2]
[362168119,1748050239935,-1245.43036,0.00029979,2]
[362168120,1748050239945,-1245.43037,0.00029979,2]
[362168121,1748050239954,-1245.43037,0.00029979,2]
[362168122,1748050239964,-152.810104,0.0002998,7]
[362168123,1748050239974,-151.624269,0.0002998,7]
[362168125,1748050239983,-151.0,0.0002998,7]
[362168127,1748050239992,-151.0,0.0002998,7]
[362168129,1748050240002,-150.0,0.0002998,7]
[362168131,1748050240011,-210.09039838,0.0002998,7]
[362168133,1748050240020,-150.0,0.0002998,7]
[362168135,1748050240029,-54670.6059958,0.0002998,3]
[362168137,1748050240038,-316.0,0.00029989,2]
[362168139,1748050240047,-500.0,0.00029989,2]
[362168141,1748050240057,-500.0,0.00029989,2]
[362168143,1748050240066,-152.465796,0.0002999,7]
[362168145,1748050240075,-151.0,0.0002999,7]
[362168147,1748050240085,-91117.6766596,0.0002999,3]
[362168149,1748050240095,-39731.97212381,0.0002999,3]
[362168151,1748050240106,-9025.32125001,0.0002999,3]
[362168153,1748050240117,-13792.92332109,0.0002999,3]
[362168158,1748050240150,-3425.26820537,0.0002999,3]
[362168205,1748050242875,-179.550965,0.00029934,7]
[362168206,1748050242885,-1856.75899715,0.0002999,3]
[362168209,1748050243216,-6.513e-05,0.0002999,3]
[362168210,1748050243235,-251.93000001,0.0002999,3]
[362168211,1748050243247,-678.01522702,0.0002999,3]
[362168213,1748050245478,-899.246977,0.00029192,4]
[362168214,1748050245487,-545.873384,0.00029679,2]
[362168215,1748050245497,-358.95778688,0.000299,2]
[362168216,1748050245507,-151.0,0.00029934,7]
[362168217,1748050245517,-7638.35554387,0.0002999,3]
[362168218,1748050245913,-10768.95603812,0.0002999,3]
[362168221,1748050514992,152.49,0.00025,60]
[362168222,1748050704053,3565.0,0.00027397,120]
[362168223,1748050782966,1000.0,0.00027397,120]
[362168224,1748050794841,1000.0,0.00027397,120]
[362168225,1748050813167,1000.0,0.00027397,120]
[362168226,1748050826505,200.0,0.00027,120]
[362168227,1748050963058,306.0,0.00027,120]
[362168228,1748051150134,-151.0,0.00022703,2]
[362168229,1748051150155,-342.46186859,0.00025224,2]
[362168230,1748051189573,159.65,0.00013699,2]
[362168232,1748051236102,-864.77813141,0.00025224,2]
[362168233,1748051236125,-206.0,0.00026157,2]
[362168234,1748051236147,-44.72151047,0.00026631,2]
[362168235,1748051241101,-259.24467493,0.00026631,2]
[362168236,1748051244095,-342.2109936,0.00026631,2]
[362168237,1748051244115,-17.26422791,0.00026765,2]
[362168238,1748051252091,-173.10988381,0.00026765,2]
[362168239,1748051252113,-208.12386556,0.00026781,7]
[362168240,1748051252139,-21.3319177,0.00026865,4]
[362168241,1748051417158,310.34343372,0.00026731,4]
[362168242,1748051417179,139.65656628,0.00026731,4]
[362168243,1748051431850,-578.6680823,0.00026998,4]
[362168244,1748051431860,-1000.0,0.00027099,2]
[362168245,1748051431870,-10.84716164,0.00027107,2]
[362168249,1748051437569,-1419.89283836,0.00027107,2]
[362168251,1748051437579,-192.0,0.00027159,2]
[362168252,1748051437588,-174.15,0.00027163,2]
[362168254,1748051437597,-2751.0,0.00027166,2]
[362168256,1748051437606,-163.35,0.00027204,2]
[362168257,1748051437616,-177.07,0.00027267,2]
[362168259,1748051437625,-723.49,0.00027289,2]
[362168261,1748051437640,-247.95,0.00027312,2]
[362168262,1748051437649,-300.0,0.0002736,2]
[362168264,1748051437659,-1200.0,0.00027361,2]
[362168265,1748051437668,-3424.10888853,0.00027362,2]
[362168267,1748051437680,-320.14840894,0.00027362,2]
[362168269,1748051437692,-411.93182001,0.00027362,2]
[362168271,1748051437704,-11414.13088252,0.00027362,2]
[362168272,1748051437714,-159.65,0.00027397,2]
[362168274,1748051437723,-152.87,0.00027397,2]
[362168276,1748051437734,-162.06,0.00027397,2]
[362168278,1748051437743,-160.44,0.00027485,2]
[362168279,1748051437753,-1207.24,0.00027488,2]
[362168280,1748051437763,-160.44,0.00027505,2]
[362168281,1748051437773,-160.44,0.00027525,2]
[362168282,1748051437783,-160.44,0.00027544,2]
[362168283,1748051437792,-160.44,0.00027564,2]
[362168284,1748051437802,-250.0,0.00027577,2]
[362168285,1748051437812,-160.44,0.00027584,2]
[362168286,1748051437821,-150.0,0.000276,2]
[362168287,1748051437831,-160.44,0.00027603,2]
[362168288,1748051437840,-160.44,0.00027623,2]
[362168289,1748051437850,-200.0,0.00027747,117]
[362168290,1748051437859,-803.0,0.00027796,2]
[362168291,1748051437869,-154.0,0.00027796,2]
[362168293,1748051437879,-157.20760934,0.00027796,2]
[362168296,1748051437897,-466.36139066,0.00027796,2]
[362168298,1748051437907,-200.0,0.00027811,2]
[362168300,1748051437916,-86.87553467,0.0002783,2]
[362168303,1748051437927,-1241.83745801,0.0002783,2]
[362168306,1748051437955,-435.95700732,0.0002783,2]
[362168308,1748051437964,-203.61743443,0.00027864,2]
[362168311,1748051437976,-264.825,0.00027864,2]
[362168312,1748051437987,-487.16144789,0.00027864,2]
[362168315,1748051437998,-19629.59747206,0.00027864,2]
[362168527,1748051439793,-3314.79864562,0.00027864,2]
[362168530,1748051439803,-202.61730471,0.000279,18]
[362168533,1748051439812,-167.19,0.00027917,2]
[362168536,1748051439822,-5559.49651049,0.00028173,2]
[362168539,1748051439832,-191.60611037,0.0002825,2]
[362168542,1748051439841,-219.92805763,0.0002825,2]
[362168545,1748051439850,-35890.07443917,0.00028251,2]
[362168563,1748051440001,-3174.07590473,0.00028251,2]
[362168566,1748051440014,-2480.11030225,0.00028251,2]
[362168577,1748051440072,-466.51014318,0.00028251,2]
[362168620,1748051440268,-1156.2,0.00028251,2]
[362168622,1748051440279,-5233.52839809,0.00028251,2]
[362168624,1748051440290,-37052.97233018,0.00028251,2]
[362168626,1748051440302,-18854.49188158,0.00028251,2]
[362168628,1748051440311,-432.39680247,0.00028273,5]
[362168630,1748051440320,-150.0,0.00028508,7]
[362168633,1748051440329,-202.61730456,0.00028525,19]
[362168636,1748051440338,-157.95,0.00028528,2]
[362168639,1748051440347,-1736.79,0.00028537,2]
[362168642,1748051440357,-593.62,0.00028598,2]
[362168645,1748051440366,-306.65,0.00028632,120]
[362168648,1748051440375,-1158.81,0.00028767,2]
[362168651,1748051440384,-202.55893631,0.00028911,30]
[362168654,1748051440393,-5559.49651045,0.0002892,2]
[362168657,1748051440402,-1000.0,0.00028947,2]
[362168660,1748051440411,-2500.0,0.00028947,2]
[362168663,1748051440420,-201.0,0.00029,120]
[362168665,1748051440429,-155.41,0.00029,2]
[362168668,1748051440439,-211.92212288,0.00029046,2]
[362168671,1748051440449,-498.63304585,0.00029046,2]
[362168674,1748051440458,-31937.66457223,0.00029047,2]
[362168930,1748051442826,-206.0,0.00028917,2]
[362168932,1748051442835,-1544.87996141,0.00029047,2]
[362168937,1748051442898,-1421.38481035,0.00029047,2]
[362168981,1748051530016,-207.403333,0.00027397,4]
[362168982,1748051530038,-52.57133731,0.000277,2]
[362168983,1748051533059,-97.42866269,0.000277,2]
[362168984,1748051533083,-124.53383866,0.00027796,2]
[362168985,1748051538244,-25.87216134,0.00027796,2]
[362168986,1748051538271,-203.598,0.00027796,2]
[362168987,1748051538297,-40.7275749,0.00027796,2]
[362168988,1748051539690,-187.876677,0.00027796,2]
[362168989,1748051541105,-33.6017481,0.00027796,2]
[362168990,1748051541128,-254.52399917,0.00028947,2]
[362168991,1748051608930,250.0,0.00015,2]
[362168992,1748052001854,2036.17,0.00027397,120]
[362168993,1748052146201,263.0,0.00027397,120]
[362168995,1748052220070,10000.0,0.00027397,120]
[362168997,1748052266769,159.4,0.00013699,2]
[362168998,1748052288177,-171.90880461,0.00022128,2]
[362168999,1748052290159,-8.43119539,0.00022128,2]
[362169000,1748052342104,-1086.51,0.00026041,2]
[362169001,1748052342134,-200.0,0.00026041,117]
[362169002,1748052342156,-210.49441718,0.00026041,2]
[362169003,1748052342179,-30.63873704,0.00026399,2]
[362169004,1748052372172,350.26034,0.0002,30]
[362169005,1748052382467,288.77327,0.0002,30]
[362169006,1748052401090,-224.43572953,0.000261,2]
[362169007,1748052402385,350.26029,0.0002,30]
[362169008,1748052414281,288.77319,0.0002,30]
[362169009,1748052425092,-300.0,0.00026099,2]
[362169010,1748052425116,-336.89447141,0.000261,2]
[362169011,1748052430853,350.26029,0.0002,30]
[362169012,1748052444094,-275.6803719,0.000261,2]
[362169013,1748052448099,-1044.5696956,0.000261,2]
[362169014,1748052452073,-458.18379524,0.000261,2]
[362169015,1748052456374,1430.95,0.00013699,2]
[362169016,1748052456396,1317.06,0.00013699,2]
[362169017,1748052456772,682.94,0.00013699,2]
[362169018,1748052456794,2000.0,0.00013699,2]
[362169019,1748052456819,65.07,0.00013699,2]
[362169020,1748052457185,2748.01,0.00013699,2]
[362169021,1748052457504,2748.01,0.00013699,2]
[362169022,1748052457890,2748.01,0.00013699,2]
[362169023,1748052458271,2748.01,0.00013699,2]
[362169024,1748052458627,2748.01,0.00013699,2]
[362169025,1748052458926,2748.01,0.00013699,2]
[362169026,1748052459267,2748.01,0.00013699,2]
[362169027,1748052459627,2748.01,0.00013699,2]
[362169028,1748052460718,2748.01,0.00013699,2]
[362169029,1748052461175,2748.01,0.00013699,2]
[362169030,1748052461989,2748.01,0.00013699,2]
[362169031,1748052462313,2748.01,0.00013699,2]
[362169032,1748052462671,2748.01,0.00013699,2]
[362169033,1748052463076,2748.01,0.00013699,2]
[362169034,1748052463497,197.98186998,0.00013699,2]
[362169035,1748052463520,2550.02813002,0.00013699,2]
[362169036,1748052463906,2748.01,0.00013699,2]
[362169037,1748052464265,2748.01,0.00013699,2]
[362169038,1748052464603,2748.20631963,0.00013699,2]
[362169039,1748052551127,-324.92939356,0.000256,2]
[362169040,1748052558101,-200.0,0.0002615,117]
[362169041,1748052558124,-55.62025345,0.000262,3]
[362169042,1748052571090,-290.52094713,0.000262,3]
[362169044,1748052631782,-38544.0,0.000251,2]
[362169045,1748052631792,-1200.0,0.00025299,2]
[362169046,1748052631802,-300.0,0.00025299,2]
[362169047,1748052631813,-5561.0,0.00026,3]
[362169048,1748052631823,-262.58270794,0.00026299,2]
[362169049,1748052631833,-269.36126296,0.00026399,2]
[362169050,1748052631842,-200.0,0.00026399,117]
[362169051,1748052631851,-250.0,0.000264,2]
[362169052,1748052631861,-155.12227772,0.00026781,7]
[362169053,1748052631871,-500.0,0.00026781,2]
[362169054,1748052631880,-200.56723126,0.000269,16]
[362169055,1748052631890,-5561.0,0.000269,5]
[362169056,1748052631900,-262.58270792,0.0002695,2]
[362169057,1748052631909,-420.0,0.00027399,2]
[362169058,1748052631919,-2751.0,0.00027491,2]
[362169059,1748052631928,-12329.19,0.00027491,2]
[362169060,1748052631938,-200.56723116,0.00027493,17]
[362169062,1748052632203,-162.06,0.00027587,2]
[362169064,1748052632225,-262.58270792,0.00027601,2]
[362169066,1748052632235,-154.0,0.00027616,2]
[362169068,1748052632244,-579.168,0.00027616,2]
[362169069,1748052632253,-400.48,0.00027643,2]
[362169071,1748052632263,-200.0,0.00027689,2]
[362169073,1748052632272,-150.0,0.000277,2]
[362169074,1748052632281,-152.87,0.000277,2]
[362169076,1748052632291,-1000.0,0.00027749,2]
[362169078,1748052632300,-215.61990572,0.00027789,2]
[362169080,1748052632310,-22469.71982305,0.0002779,2]
[362169082,1748052632319,-250.0,0.0002783,2]
[362169084,1748052632328,-200.0,0.0002783,117]
[362169086,1748052632338,-2075.65,0.00028,5]
[362169088,1748052632347,-361.74,0.00028021,2]
[362169089,1748052632357,-200.56723116,0.00028085,18]
[362169091,1748052632366,-177.07,0.00028265,2]
[362169093,1748052632375,-287.38,0.00028269,2]
[362169096,1748052632384,-1086.51,0.00028305,2]
[362169098,1748052632394,-353.5,0.00028378,2]
[362169100,1748052632403,-353.5,0.00028378,2]
[362169102,1748052632412,-250.0,0.00028484,2]
[362169104,1748052632421,-200.0,0.0002849,117]
[362169106,1748052632431,-23900.0,0.00028519,2]
[362169108,1748052632445,-420.0,0.00028558,2]
[362169110,1748052632455,-795.39,0.00028587,2]
[362169112,1748052632464,-605.00778615,0.0002859,2]
[362169115,1748052632474,-200.56723116,0.00028678,19]
[362169118,1748052632487,-353.5,0.00028678,2]
[362169121,1748052632497,-255.64,0.00028719,120]
[362169124,1748052632506,-502.0214554,0.00028733,5]
[362169127,1748052632516,-150.0,0.0002878,7]
[362169129,1748052632525,-426.75759134,0.000288,2]
[362169130,1748052632535,-156.49,0.00028836,2]
[362169132,1748052632544,-605.00778616,0.00028925,2]
[362169134,1748052632553,-2076.127,0.00028947,2]
[362169136,1748052632563,-250.0,0.00029039,2]
[362169138,1748052632573,-200.0,0.00029039,117]
[362169140,1748052632583,-155.42,0.00029046,2]
[362169142,1748052632593,-200.0,0.00029047,2]
[362169144,1748052632602,-200.0,0.00029047,2]
[362169146,1748052632612,-40345.17669262,0.00029047,2]
[362169148,1748052632622,-500.0,0.00029073,5]
[362169150,1748052632632,-500.0,0.00029073,5]
[362169152,1748052632641,-719.397581,0.00029089,4]
[362169154,1748052632651,-572.49,0.00029095,7]
[362169156,1748052632660,-159.4,0.0002911,2]
[362169158,1748052632669,-200.56723116,0.0002927,20]
[362169160,1748052632679,-539.31619453,0.000293,2]
[362169162,1748052632688,-200.0,0.00029337,2]
[362169164,1748052632697,-1178.0,0.000294,2]
[362169166,1748052632706,-165.33633574,0.00029419,15]
[362169168,1748052632716,-587.2914841,0.00029419,2]
[362169169,1748052632726,-154.70106263,0.00029419,2]
[362169171,1748052632736,-821.23637028,0.00029419,2]
[362169173,1748052632745,-2500.0,0.00029429,2]
[362169175,1748052632755,-2608.4413303,0.00029431,2]
[362169177,1748052632765,-753.3311,0.00029439,2]
[362169179,1748052632775,-170.24686346,0.0002944,2]
[362169181,1748052632784,-230.02587706,0.0002944,2]
[362169183,1748052632795,-152.86,0.00029508,2]
[362169185,1748052632804,-437.28341548,0.00029508,2]
[362169187,1748052632815,-152.86,0.00029509,2]
[362169189,1748052632824,-186.10414809,0.00029518,2]
[362169191,1748052632833,-199.9471334,0.00029518,2]
[362169193,1748052632842,-179.09523854,0.00029518,2]
[362169195,1748052632852,-500.0,0.00029518,2]
[362169197,1748052632862,-609.2834419,0.00029518,2]
[362169199,1748052632871,-447.48421568,0.00029518,3]
[362169201,1748052632881,-72974.11480089,0.00029518,3]
[362169203,1748052632893,-356830.521,0.00029518,3]
[362169205,1748052632905,-35000.0,0.00029518,3]
[362169207,1748052632915,-98756.52519019,0.00029518,3]
[362169209,1748052632927,-519.20423304,0.00029518,3]
[362169211,1748052632939,-48240.79892723,0.00029518,3]
[362169213,1748052632950,-1450.0,0.00029518,3]
[362169215,1748052632961,-398.30776947,0.00029518,3]
[362169218,1748052632972,-1260.23074267,0.00029518,3]
[362169220,1748052632983,-568.78452691,0.00029518,3]
[362169222,1748052632993,-568.94583936,0.00029518,3]
[362169224,1748052633005,-452.95011032,0.00029518,3]
[362169226,1748052633016,-10563.95354518,0.00029518,3]
[362169228,1748052633027,-787.56775065,0.00029518,3]
[362169231,1748052633045,-2839.41997,0.00029518,3]
[362169233,1748052633056,-1784.66812765,0.00029518,3]
[362169235,1748052633067,-654.52967017,0.00029518,3]
[362169237,1748052633079,-1539.6573271,0.00029518,3]
[362169239,1748052633091,-950.91303313,0.00029518,3]
[362169241,1748052633102,-690.22759958,0.00029518,3]
[362169243,1748052633114,-9016.53633979,0.00029518,3]
[362169246,1748052633126,-3806.41843961,0.00029518,3]
[362169248,1748052633138,-981.14287449,0.00029518,3]
[362169250,1748052633149,-589.28797856,0.00029518,3]
[362169668,1748052637695,-387.58826349,0.00029518,3]
[362169670,1748052637707,-97024.94712115,0.00029518,3]
[362169675,1748052637749,-909.83201214,0.00029518,3]
[362169677,1748052637760,-435.68171857,0.00029518,3]
[362169679,1748052637771,-8656.5974903,0.00029518,3]
[362169682,1748052637782,-16712.88852841,0.00029518,3]
[362169684,1748052637793,-44287.34417125,0.00029518,3]
[362169686,1748052637804,-262.18797571,0.00029518,3]
[362169688,1748052637815,-628.80488589,0.00029518,3]
[362169690,1748052637826,-7867.5387769,0.00029518,3]
[362169692,1748052637838,-31694.46721515,0.00029518,3]
[362169695,1748052637850,-1498.92865262,0.00029518,3]
[362169697,1748052637861,-3016.32568642,0.00029518,3]
[362169699,1748052637872,-256.54459519,0.00029518,3]
[362169701,1748052637884,-2615.26312794,0.00029518,3]
[362169705,1748052637910,-685.99741659,0.00029518,3]
[362169707,1748052637921,-61381.58604024,0.00029518,3]
[362169712,1748052637964,-1861.44688721,0.00029518,3]
[362169910,1748052639992,-152.02988673,0.00027616,2]
[362169913,1748052640004,-713.93511327,0.00027616,2]
[362169915,1748052640013,-6482.39306683,0.00029518,3]
[362169917,1748052640029,-536.458383,0.00029518,3]